bitfinex/quotes_SOLUSD_20250717
["timestamp","ask_amount","ask_price","bid_price","bid_amount"]
[1752795926709,5.67279328,176.28,176.26,1e-08]
[1752795926919,14.91724022,176.28,176.26,1e-08]
[1752795928218,9.24444694,176.27,176.26,1e-08]
[1752795928599,9.95444694,176.27,176.26,1e-08]
[1752795928920,40.41444694,176.27,176.26,1e-08]
[1752795929122,30.46,176.27,176.26,1e-08]
[1752795929295,5.67279328,176.28,176.26,0.68000001]
[1752795929628,5.67279328,176.28,176.27,0.68]
[1752795930011,14.91724022,176.28,176.26,1e-08]
[1752795930418,5.67279328,176.28,176.26,0.68000001]
[1752795930724,5.67279328,176.28,176.26,1e-08]
[1752795930905,14.91724022,176.28,176.26,1e-08]
[1752795931700,5.67279328,176.28,176.26,1e-08]
[1752795933005,5.67279328,176.28,176.26,0.68000001]
[1752795935199,5.67279328,176.28,176.26,1e-08]
[1752795935537,5.67279328,176.28,176.26,0.68000001]
[1752795935703,5.67279328,176.28,176.27,0.68]
[1752795936430,5.67247149,176.29,176.27,0.68]
[1752795937018,5.67223408,176.3,176.28,9.92444694]
[1752795937315,5.67223408,176.3,176.29,0.68]
[1752795937713,5.67223408,176.3,176.27,9.92444694]
[1752795938012,5.67223408,176.3,176.28,0.68]
[1752795938214,15.62668102,176.3,176.26,1e-08]
[1752795938418,29.09705538,176.3,176.26,0.68000001]
[1752795938607,29.09705538,176.3,176.26,1e-08]
[1752795938925,26.35403735,176.3,176.26,1e-08]
[1752795939132,25.64403735,176.3,176.26,0.68000001]
[1752795939301,19.85260844,176.3,176.26,0.68000001]
[1752795939502,25.64403735,176.3,176.26,0.68000001]
[1752795940423,19.85260844,176.3,176.26,0.68000001]
[1752795940604,19.85260844,176.3,176.27,0.68]
[1752795941504,5.67223408,176.3,176.28,0.68]
[1752795941705,5.67223408,176.3,176.29,0.68]
[1752795942024,5.67193213,176.31,176.29,6.47142891]
[1752795942335,5.67193213,176.31,176.3,0.68]
[1752795942933,5.67109992,176.34,176.3,6.47142891]
[1752795943242,5.67109992,176.34,176.31,0.68]
[1752795943417,5.67109992,176.34,176.32,0.68]
[1752795943609,5.67109992,176.34,176.3,6.47142891]
[1752795943809,5.67109992,176.34,176.3,0.68]
[1752795944122,19.84825768,176.34,176.3,6.47142891]
[1752795944430,26.34968659,176.34,176.28,6.47142891]
[1752795945003,20.55825768,176.34,176.29,5.79142891]
[1752795945208,20.55825768,176.34,176.29,6.47142891]
[1752795946517,20.55825768,176.34,176.3,6.47142891]
[1752795946724,19.84825768,176.34,176.31,0.68]
[1752795947348,5.67109992,176.34,176.32,0.68]
[1752795947627,5.67109992,176.34,176.32,6.47142891]
[1752795947830,5.67109992,176.34,176.32,0.68]
[1752795948130,5.67109992,176.34,176.33,0.68]
[1752795948339,5.67109992,176.34,176.31,6.47142891]
[1752795948524,19.90689537,176.35,176.29,0.68]
[1752795948732,5.79142891,176.34,176.29,0.68]
[1752795949032,5.79142891,176.34,176.3,0.68]
[1752795949334,26.40832428,176.35,176.3,0.68]
[1752795949531,20.61689537,176.35,176.3,0.68]
[1752795949727,26.40832428,176.35,176.3,0.68]
[1752795949919,26.40832428,176.35,176.3,6.47142891]
[1752795950839,0.71,176.34,176.3,6.47142891]
[1752795951028,19.90689537,176.35,176.31,6.47142891]
[1752795951231,19.90689537,176.35,176.32,0.68]
[1752795952010,5.73054153,176.35,176.32,0.68]
[1752795952833,0.72,176.34,176.28,0.68]
[1752795953131,0.72,176.34,176.29,5.79142891]
[1752795953330,11.52197044,176.35,176.28,5.79142891]
[1752795953331,0.72,176.33,176.28,5.79142891]
[1752795953527,0.72,176.33,176.29,0.68]
[1752795953853,5.79142891,176.34,176.29,0.68]
[1752795954149,6.51142891,176.34,176.29,6.47142891]
[1752795954330,6.51142891,176.34,176.3,0.68]
[1752795954531,5.79142891,176.34,176.3,0.68]
[1752795954941,5.67118471,176.33,176.3,0.68]
[1752795956444,5.67118471,176.33,176.29,5.79142891]
[1752795956751,5.67118471,176.33,176.29,6.47142891]
[1752795956925,19.84914648,176.33,176.29,6.47142891]
[1752795957140,6.51142891,176.32,176.27,5.79142891]
[1752795957448,0.72,176.32,176.28,5.79142891]
[1752795957621,0.72,176.32,176.28,6.47142891]
[1752795957822,56.04057539,176.33,176.28,6.47142891]
[1752795958238,56.76057539,176.33,176.28,6.47142891]
[1752795958830,5.79142891,176.32,176.28,0.68]
[1752795959025,5.67182803,176.31,176.28,0.68]
[1752795959222,5.67182803,176.31,176.29,5.79142891]
[1752795959441,5.67182803,176.31,176.3,6.47142891]
[1752795959754,5.67182803,176.31,176.3,0.68]
[1752795960055,30.46,176.35,176.3,6.47142891]
[1752795960261,5.6708631,176.34,176.31,0.68]
[1752795960434,5.6708631,176.34,176.32,0.68]
[1752795960621,5.6708631,176.34,176.33,0.68]
[1752795960951,0.06,176.35,176.33,6.47142891]
[1752795961155,0.06,176.35,176.34,5.79142891]
[1752795961328,0.06,176.35,176.34,6.47142891]
[1752795963724,0.06,176.35,176.32,5.67141747]
[1752795963725,0.06,176.35,176.33,5.79142891]
[1752795964124,0.06,176.35,176.33,6.47142891]
[1752795964737,0.06,176.35,176.34,6.47142891]
[1752795968241,0.06,176.35,176.33,5.79142891]
[1752795968551,0.78,176.35,176.3,5.79142891]
[1752795969052,5.67114021,176.34,176.3,6.47142891]
[1752795969346,5.67114021,176.34,176.31,0.68]
[1752795970145,5.73063762,176.35,176.32,6.47142891]
[1752795970347,5.73063762,176.35,176.33,6.47142891]
[1752795970526,5.73063762,176.35,176.33,0.68]
[1752795971031,0.06,176.35,176.29,36.07238868]
[1752795971231,0.06,176.35,176.31,0.68]
[1752795971446,0.06,176.35,176.32,0.68]
[1752795973049,0.06,176.35,176.32,6.47142891]
[1752795973236,0.06,176.35,176.33,0.68]
[1752795974229,0.06,176.35,176.32,5.79142891]
[1752795974424,0.06,176.35,176.32,0.68]
[1752795974829,0.06,176.35,176.32,6.47142891]
[1752795975327,0.06,176.35,176.33,0.68]
[1752795975555,0.06,176.35,176.29,30.4]
[1752795975757,0.06,176.35,176.31,6.47142891]
[1752795975957,0.06,176.35,176.32,0.68]
[1752795976435,0.06,176.35,176.32,6.47142891]
[1752795976934,0.06,176.35,176.32,5.79142891]
[1752795977130,0.06,176.35,176.33,0.68]
[1752795978550,0.06,176.35,176.31,6.47142891]
[1752795978768,0.06,176.35,176.31,5.79142891]
[1752795978934,0.06,176.35,176.32,0.68]
[1752795979749,0.06,176.35,176.33,0.68]
[1752795979954,0.06,176.35,176.33,6.47142891]
[1752795980142,0.06,176.35,176.34,6.47142891]
[1752795980460,0.06,176.35,176.34,12.14229201]
[1752795981034,0.06,176.35,176.34,6.47142891]
[1752795982554,0.06,176.35,176.34,0.69]
[1752795983145,0.06,176.35,176.34,6.48142891]
[1752795987067,0.06,176.35,176.34,28.93697598]
[1752795987364,0.06,176.43,176.34,29.50406229]
[1752795987571,0.06,176.43,176.41,5.79142891]
[1752795988078,0.06,176.43,176.41,6.48142891]
[1752795988567,0.06,176.43,176.42,5.79142891]
[1752795989179,0.06,176.43,176.42,0.69]
[1752795989349,0.06,176.43,176.42,6.48142891]
[1752795991276,0.06,176.43,176.42,12.14972048]
[1752795991563,0.06,176.43,176.42,28.93440445]
[1752795994957,0.06,176.43,176.42,12.14972048]
[1752795995169,0.06,176.43,176.41,36.11142891]
[1752795995982,0.06,176.43,176.39,5.66914268]
[1752795996158,0.06,176.43,176.41,5.79142891]
[1752795997470,0.06,176.43,176.42,5.79142891]
[1752795997661,0.06,176.43,176.42,6.48142891]
[1752795998667,0.06,176.43,176.42,23.83294203]
[1752795999052,0.06,176.43,176.42,29.5012336]
[1752796006773,0.06,176.43,176.42,55.5012336]
[1752796006980,0.1,176.45,176.44,16.78468397]
[1752796007170,0.1,176.45,176.44,53.40287778]
[1752796007360,0.1,176.45,176.44,54.09287778]
[1752796008677,0.1,176.45,176.44,59.76052683]
[1752796009190,0.1,176.45,176.44,53.96909792]
[1752796009376,0.1,176.45,176.44,59.76052683]
[1752796012473,0.1,176.45,176.44,58.50376193]
[1752796013285,0.1,176.45,176.44,59.16376193]
[1752796020674,0.1,176.46,176.45,16.78468397]
[1752796020999,6.3238,176.53,176.49,5.6660434]
[1752796021183,6.3238,176.53,176.52,5.79142891]
[1752796021385,0.1,176.53,176.52,36.67142891]
[1752796021582,0.1,176.53,176.52,53.45611288]
[1752796023100,0.1,176.53,176.52,59.12119332]
[1752796024005,0.1,176.53,176.52,53.32976441]
[1752796024308,0.1,176.53,176.52,59.12119332]
[1752796025610,0.1,176.53,176.52,30.2]
[1752796025810,0.1,176.53,176.52,35.99142891]
[1752796026199,0.1,176.53,176.52,52.77611288]
[1752796026509,0.1,176.53,176.52,53.43611288]
[1752796027288,0.1,176.53,176.52,59.10119332]
[1752796027713,0.1,176.53,176.52,53.30976441]
[1752796028223,0.1,176.53,176.52,58.44119332]
[1752796028598,0.1,176.53,176.52,41.65650935]
[1752796029193,0.1,176.53,176.52,42.31650935]
[1752796029598,0.1,176.53,176.52,59.10119332]
[1752796034690,0.1,176.53,176.52,58.44119332]
[1752796034922,0.1,176.53,176.52,41.65650935]
[1752796035815,0.1,176.53,176.52,42.31650935]
[1752796036332,0.1,176.53,176.52,41.65650935]
[1752796038927,0.1,176.53,176.52,59.10119332]
[1752796039636,0.1,176.53,176.52,53.30976441]
[1752796039929,0.1,176.53,176.52,59.10119332]
[1752796040341,0.1,176.53,176.52,53.30976441]
[1752796040510,0.1,176.53,176.52,59.10119332]
[1752796041611,0.1,176.53,176.52,41.65650935]
[1752796042139,0.1,176.53,176.52,59.10119332]
[1752796046140,0.1,176.53,176.52,58.44119332]
[1752796046342,0.1,176.53,176.52,59.16119332]
[1752796047440,0.1,176.53,176.52,58.44119332]
[1752796047653,1.5299,176.52,176.43,89.52]
[1752796047818,5.66572237,176.5,176.41,0.72]
[1752796048131,0.69,176.49,176.45,5.79142891]
[1752796048338,0.69,176.48,176.46,5.79142891]
[1752796049045,0.69,176.51,176.47,35.93142891]
[1752796049221,0.69,176.51,176.49,5.79142891]
[1752796049418,0.69,176.51,176.47,30.14]
[1752796049637,0.69,176.5,176.47,30.14]
[1752796049844,0.69,176.5,176.47,35.93142891]
[1752796050031,0.69,176.5,176.46,35.93142891]
[1752796051027,12.98651931,176.52,176.47,5.79142891]
[1752796051233,0.69,176.51,176.48,5.79142891]
[1752796051426,0.69,176.5,176.48,5.79142891]
[1752796051726,0.69,176.5,176.47,5.79142891]
[1752796051921,7.1950904,176.52,176.47,5.79142891]
[1752796052118,0.69,176.49,176.46,30.14]
[1752796052334,0.69,176.49,176.45,0.03]
[1752796052548,0.69,176.49,176.45,35.96142891]
[1752796052749,0.69,176.49,176.45,5.82142891]
[1752796053142,6.35610119,176.49,176.45,5.82142891]
[1752796053442,0.69,176.48,176.46,5.79142891]
[1752796053644,0.69,176.47,176.45,5.82142891]
[1752796053862,0.69,176.49,176.46,5.79142891]
[1752796054223,0.69,176.49,176.47,5.79142891]
[1752796054958,0.69,176.49,176.46,35.93142891]
[1752796055532,0.69,176.48,176.46,35.93142891]
[1752796056379,6.35582772,176.5,176.46,35.93142891]
[1752796056532,0.69,176.49,176.46,35.93142891]
[1752796057169,0.69,176.48,176.45,0.03]
[1752796057357,0.69,176.48,176.46,5.79142891]
[1752796057653,0.69,176.48,176.45,5.82142891]
[1752796057834,0.69,176.47,176.45,5.82142891]
[1752796058034,0.69,176.47,176.4,46.53027311]
[1752796058035,6.48142891,176.46,176.37,0.03]
[1752796058238,5.79142891,176.43,176.37,11.49129703]
[1752796058547,0.69,176.42,176.37,35.96142891]
[1752796058857,0.69,176.41,176.38,5.79142891]
[1752796059072,0.69,176.4,176.37,35.96142891]
[1752796059366,5.66764905,176.44,176.37,35.96142891]
[1752796059367,0.69,176.39,176.37,35.96142891]
[1752796060444,0.69,176.39,176.37,30.17]
[1752796060641,0.69,176.39,176.37,35.96142891]
[1752796061256,0.69,176.42,176.38,5.79142891]
[1752796061449,5.79142891,176.42,176.37,30.17]
[1752796061650,0.69,176.41,176.37,35.96142891]
[1752796061871,0.69,176.4,176.37,35.96142891]
[1752796063999,1.5404,176.38,176.37,0.03]
[1752796064163,13.91352891,176.38,176.37,0.03]
[1752796064373,8.8121,176.38,176.37,0.03]
[1752796064589,14.48167704,176.38,176.37,0.03]
[1752796064787,8.8121,176.38,176.37,0.03]
[1752796065386,8.1221,176.38,176.37,5.82142891]
[1752796065691,1.5404,176.38,176.37,0.03]
[1752796065870,2.2304,176.38,176.37,0.03]
[1752796066074,13.69140595,176.38,176.37,0.03]
[1752796066278,7.89997704,176.38,176.37,0.03]
[1752796067889,2.2304,176.38,176.37,0.03]
[1752796068195,1.5404,176.38,176.37,0.03]
[1752796068575,2.2304,176.38,176.37,0.03]
[1752796068776,8.02182891,176.38,176.37,0.03]
[1752796069001,7.89997704,176.38,176.37,0.03]
[1752796070372,2.2304,176.38,176.37,0.03]
[1752796072604,7.89997704,176.38,176.37,0.03]
[1752796072981,2.2304,176.38,176.37,0.03]
[1752796073304,7.89997704,176.38,176.37,0.03]
[1752796074297,13.69140595,176.38,176.37,0.03]
[1752796077175,7.89997704,176.38,176.37,0.03]
[1752796078808,13.69140595,176.38,176.37,0.03]
[1752796079386,43.79140595,176.38,176.37,0.03]
[1752796080312,32.5898,176.36,176.35,0.03]
[1752796080604,38.38122891,176.36,176.35,0.03]
[1752796080813,44.75144891,176.36,176.35,0.03]
[1752796080979,44.75144891,176.36,176.34,0.03]
[1752796081183,6.49142891,176.35,176.34,0.03]
[1752796081379,6.49142891,176.35,176.34,1e-08]
[1752796081602,8.08192891,176.35,176.34,1e-08]
[1752796081905,8.08192891,176.35,176.29,0.03]
[1752796081906,5.79142891,176.3,176.29,0.03]
[1752796082283,6.49142891,176.3,176.29,0.03]
[1752796082884,12.16357865,176.3,176.29,0.03]
[1752796084088,26.0,176.3,176.29,0.03]
[1752796084295,148.3,176.34,176.29,0.03]
[1752796084296,149.0,176.34,176.29,6.52142891]
[1752796084490,180.67090832,176.34,176.3,6.49142891]
[1752796084699,153.97090832,176.34,176.3,0.7]
[1752796084882,179.97090832,176.34,176.3,6.49142891]
[1752796085290,148.3,176.34,176.3,6.49142891]
[1752796085490,153.97093261,176.34,176.31,0.7]
[1752796086298,148.3,176.34,176.31,0.7]
[1752796086612,153.97092835,176.34,176.29,0.73]
[1752796086782,153.97092835,176.34,176.31,5.79142891]
[1752796086986,154.67092835,176.34,176.3,6.49142891]
[1752796087181,153.97092835,176.34,176.31,5.79142891]
[1752796087387,154.67092835,176.34,176.3,5.79142891]
[1752796087609,6.37092835,176.34,176.3,5.79142891]
[1752796087913,6.37092835,176.34,176.3,6.49142891]
[1752796088608,1.5905,176.35,176.3,5.79142891]
[1752796088796,1.5905,176.35,176.32,5.79142891]
[1752796088990,1.5905,176.35,176.32,6.49142891]
[1752796089192,61.77032241,176.36,176.32,6.49142891]
[1752796089508,5.67032241,176.36,176.32,6.49142891]
[1752796090097,5.67032241,176.36,176.33,5.79142891]
[1752796090297,5.67032241,176.36,176.33,6.49142891]
[1752796090698,5.67032241,176.36,176.33,0.7]
[1752796091585,210.19142891,176.38,176.34,5.79142891]
[1752796091586,178.4,176.38,176.34,5.79142891]
[1752796091786,178.4,176.38,176.35,6.49142891]
[1752796091787,148.3,176.38,176.35,6.49142891]
[1752796091991,1.6206,176.39,176.36,6.49142891]
[1752796092199,12.18717473,176.4,176.36,6.49142891]
[1752796092690,12.88717473,176.4,176.36,6.49142891]
[1752796093400,31.6683443,176.42,176.38,5.79142891]
[1752796093591,26.0,176.42,176.39,0.7]
[1752796093785,31.66835765,176.42,176.39,0.7]
[1752796093985,2.3714,176.43,176.4,5.79142891]
[1752796093986,0.06,176.43,176.4,5.79142891]
[1752796094200,0.06,176.43,176.4,6.49142891]
[1752796094713,0.06,176.43,176.41,0.7]
[1752796095291,0.06,176.43,176.41,6.49142891]
[1752796095591,0.76,176.43,176.39,6.49142891]
[1752796096203,5.72799397,176.43,176.37,5.66979438]
[1752796096395,6.49142891,176.42,176.36,6.49142891]
[1752796096602,0.7,176.41,176.36,6.49142891]
[1752796096812,0.7,176.41,176.37,5.79142891]
[1752796098009,5.79142891,176.42,176.38,0.7]
[1752796098317,6.49142891,176.42,176.37,6.49142891]
[1752796098619,12.15980002,176.42,176.37,6.49142891]
[1752796098808,6.36837111,176.42,176.37,6.49142891]
[1752796099015,6.36837111,176.42,176.38,6.49142891]
[1752796099318,30.14,176.43,176.38,6.49142891]
[1752796099498,30.14,176.43,176.37,5.66985338]
[1752796099499,30.14,176.43,176.39,6.49142891]
[1752796100108,0.06,176.43,176.4,5.79142891]
[1752796100313,0.06,176.43,176.4,6.49142891]
[1752796100822,0.06,176.43,176.41,0.7]
[1752796101129,0.06,176.43,176.41,6.49142891]
[1752796101323,0.06,176.43,176.42,6.49142891]
[1752796103001,0.06,176.43,176.42,12.15972048]
[1752796104501,0.06,176.43,176.42,6.49142891]
[1752796104814,0.75,176.43,176.37,30.06]
[1752796105015,6.48142891,176.42,176.37,6.46142891]
[1752796105202,0.06,176.43,176.37,6.46142891]
[1752796105203,0.69,176.41,176.37,6.46142891]
[1752796106125,5.85142891,176.43,176.38,5.79142891]
[1752796106326,6.54142891,176.43,176.38,6.46142891]
[1752796106628,0.69,176.42,176.38,6.46142891]
[1752796107123,0.69,176.42,176.38,12.13099965]
[1752796107302,0.06,176.43,176.39,6.46142891]
[1752796107504,0.06,176.43,176.4,6.46142891]
[1752796107901,5.72801844,176.43,176.37,5.66981856]
[1752796108105,5.72801844,176.43,176.39,5.79142891]
[1752796108514,0.69,176.42,176.37,5.79142891]
[1752796108729,0.69,176.42,176.38,5.79142891]
[1752796108902,6.35848953,176.42,176.38,5.79142891]
[1752796109308,6.35848953,176.42,176.37,6.46142891]
[1752796109309,5.66848953,176.42,176.37,6.46142891]
[1752796109617,0.69,176.41,176.37,6.46142891]
[1752796110125,5.66848953,176.42,176.38,5.79142891]
[1752796110424,6.35848953,176.42,176.38,5.79142891]
[1752796110806,0.69,176.41,176.37,5.79142891]
[1752796111121,0.69,176.4,176.35,6.46142891]
[1752796111447,0.69,176.39,176.35,5.79142891]
[1752796111609,5.79142891,176.41,176.35,5.79142891]
[1752796111802,0.69,176.38,176.35,5.79142891]
[1752796112213,5.79142891,176.4,176.35,5.79142891]
[1752796112409,5.79142891,176.41,176.36,6.46142891]
[1752796112619,6.48142891,176.41,176.36,6.46142891]
[1752796112819,41.94398953,176.42,176.37,6.46142891]
[1752796113009,11.92398953,176.42,176.38,5.79142891]
[1752796113209,11.92398953,176.42,176.38,6.46142891]
[1752796113411,11.92398953,176.42,176.39,0.67]
[1752796113610,30.08,176.43,176.39,0.67]
[1752796113827,0.06,176.43,176.4,6.46142891]
[1752796114020,0.06,176.43,176.41,5.79142891]
[1752796114328,0.06,176.43,176.41,6.46142891]
[1752796114723,0.06,176.43,176.4,5.79142891]
[1752796115425,0.06,176.43,176.4,6.46142891]
[1752796115631,0.06,176.43,176.41,5.79142891]
[1752796115933,0.06,176.43,176.42,5.79142891]
[1752796116435,0.06,176.43,176.41,5.79142891]
[1752796116636,0.06,176.43,176.41,6.46142891]
[1752796116838,0.06,176.43,176.42,5.79142891]
[1752796117012,0.06,176.43,176.42,12.12972048]
[1752796118241,0.06,176.43,176.4,0.67]
[1752796118538,0.06,176.43,176.41,5.79142891]
[1752796118736,0.06,176.43,176.42,5.79142891]
[1752796119717,0.75,176.43,176.39,5.79142891]
[1752796120122,0.75,176.43,176.39,6.46142891]
[1752796120524,0.06,176.43,176.39,6.46142891]
[1752796121524,0.75,176.43,176.39,6.46142891]
[1752796122014,0.69,176.42,176.36,6.33992467]
[1752796122308,5.85142891,176.43,176.36,6.33992467]
[1752796122309,0.06,176.43,176.39,5.79142891]
[1752796122528,0.75,176.43,176.39,5.79142891]
[1752796122709,0.75,176.43,176.39,6.46142891]
[1752796123115,5.66829157,176.42,176.38,5.79142891]
[1752796123419,5.72803121,176.43,176.39,6.46142891]
[1752796125228,5.72803121,176.43,176.4,0.67]
[1752796126031,5.72803121,176.43,176.38,6.46142891]
[1752796126216,12.20946012,176.43,176.38,0.67]
[1752796126413,6.41803121,176.43,176.38,6.46142891]
[1752796126813,5.72803121,176.43,176.39,6.46142891]
[1752796127041,0.06,176.43,176.4,0.67]
[1752796127231,5.72810616,176.43,176.4,0.67]
[1752796129339,5.72810616,176.43,176.39,5.79142891]
[1752796129340,6.41810616,176.43,176.39,5.79142891]
[1752796129526,6.48142891,176.42,176.36,0.67]
[1752796129724,5.79142891,176.41,176.36,0.67]
[1752796129953,6.48142891,176.41,176.34,36.37079921]
[1752796130142,5.79142891,176.38,176.34,0.03]
[1752796130336,5.79142891,176.37,176.34,0.03]
[1752796130544,5.79142891,176.36,176.34,0.03]
[1752796130724,13.34712891,176.35,176.29,0.03]
[1752796130923,26.0,176.21,176.12,0.2]
[1752796131151,26.0,176.09,176.04,0.03]
[1752796131323,5.67915193,176.09,176.04,0.03]
[1752796131528,16.78468397,176.1,176.05,0.67]
[1752796131729,2.78649868,176.12,176.08,5.79142891]
[1752796131944,2.78649868,176.12,176.11,5.79142891]
[1752796132132,2.78649868,176.12,176.11,6.46142891]
[1752796132329,7.00433949,176.12,176.11,6.46142891]
[1752796132629,4.21784081,176.12,176.11,0.67]
[1752796132822,26.42,176.19,176.11,6.46142891]
[1752796133029,22.57611288,176.18,176.11,6.46142891]
[1752796133343,11.46776426,176.17,176.11,6.46142891]
[1752796133541,26.0,176.14,176.08,0.68]
[1752796133845,26.0,176.15,176.12,5.79142891]
[1752796134145,26.0,176.15,176.12,0.68]
[1752796134335,26.0,176.17,176.12,6.47142891]
[1752796134541,26.0,176.17,176.14,5.79142891]
[1752796134731,26.0,176.17,176.13,6.47142891]
[1752796134936,26.0,176.17,176.13,0.68]
[1752796135123,26.0,176.19,176.16,9.27870047]
[1752796135323,10.91130047,176.22,176.17,0.68]
[1752796135324,29.98,176.22,176.17,0.68]
[1752796135545,29.98,176.22,176.18,0.68]
[1752796135744,29.98,176.22,176.17,9.27870047]
[1752796135950,55.98,176.22,176.17,9.27870047]
[1752796136446,55.98,176.22,176.17,9.95870047]
[1752796136650,70.93355142,176.22,176.16,9.27870047]
[1752796136948,71.35355142,176.22,176.16,9.27870047]
[1752796137147,16.78468397,176.21,176.16,9.27870047]
[1752796137352,16.78468397,176.21,176.1,15.63729217]
[1752796137353,9.27870047,176.17,176.1,15.63729217]
[1752796137542,9.27870047,176.15,176.1,0.68]
[1752796137762,9.27870047,176.14,176.08,15.63762831]
[1752796138064,9.27870047,176.14,176.08,6.35892784]
[1752796138238,9.27870047,176.13,176.08,0.68]
[1752796139462,9.27870047,176.12,176.06,15.6385755]
[1752796139961,9.27870047,176.13,176.07,9.27870047]
[1752796140457,30.0,176.14,176.1,9.27870047]
[1752796140637,26.0,176.16,176.12,9.27870047]
[1752796140838,0.42,176.21,176.15,9.27870047]
[1752796141059,26.0,176.2,176.13,0.68]
[1752796141362,9.27870047,176.21,176.16,9.27870047]
[1752796141558,9.27870047,176.21,176.16,15.63530079]
[1752796141765,9.27870047,176.17,176.12,0.68]
[1752796141950,17.20468397,176.2,176.1,5.67859068]
[1752796141951,9.27870047,176.15,176.1,5.67859068]
[1752796142266,26.0,176.17,176.11,9.27870047]
[1752796142437,30.0,176.2,176.14,9.27870047]
[1752796142634,52.45909075,176.23,176.17,9.27870047]
[1752796142840,9.27870047,176.19,176.1,45.87506995]
[1752796143051,9.27870047,176.19,176.13,9.27870047]
[1752796143250,9.27870047,176.18,176.12,9.95870047]
[1752796143464,9.27870047,176.16,176.1,15.63726073]
[1752796143868,9.27870047,176.15,176.1,6.35856026]
[1752796145046,9.27870047,176.16,176.1,15.63726073]
[1752796145468,9.27870047,176.16,176.11,9.27870047]
[1752796145672,9.27870047,176.15,176.09,9.95870047]
[1752796145841,9.27870047,176.11,176.06,0.68]
[1752796146045,9.27870047,176.1,176.04,9.30870047]
[1752796146644,9.27870047,176.1,176.04,14.98916703]
[1752796147046,9.27870047,176.08,176.04,0.03]
[1752796147773,9.27870047,176.07,176.04,0.03]
[1752796148159,9.27870047,176.08,176.04,0.03]
[1752796148561,9.27870047,176.07,176.04,0.03]
[1752796148767,9.27870047,176.06,176.04,0.03]
[1752796148966,9.27870047,176.08,176.04,0.03]
[1752796149168,13.47870047,176.08,176.04,0.71]
[1752796149473,9.27870047,176.07,176.04,0.03]
[1752796150070,9.27870047,176.08,176.05,0.68]
[1752796150245,26.0,176.09,176.05,0.68]
[1752796150643,9.27870047,176.08,176.04,0.03]
[1752796151444,9.27870047,176.05,176.04,0.03]
[1752796151650,16.78468397,176.08,176.04,0.03]
[1752796151863,14.95875915,176.06,176.04,0.03]
[1752796152064,9.27870047,176.05,176.04,0.03]
[1752796152472,9.69870047,176.05,176.04,0.03]
[1752796153179,9.27870047,176.05,176.04,0.03]
[1752796154152,14.95890495,176.05,176.04,0.03]
[1752796154572,9.27870047,176.05,176.04,0.03]
[1752796154874,65.27870047,176.06,176.04,0.03]
[1752796155050,9.27870047,176.08,176.04,0.03]
[1752796155246,39.27870047,176.09,176.04,0.71]
[1752796155472,9.27870047,176.08,176.04,0.71]
[1752796155663,9.27870047,176.07,176.04,0.71]
[1752796155860,9.27870047,176.07,176.04,0.03]
[1752796156072,9.27870047,176.05,176.04,0.03]
[1752796156978,9.69870047,176.05,176.04,0.03]
[1752796157279,9.27870047,176.05,176.04,0.03]
[1752796157973,35.27870047,176.06,176.04,0.03]
[1752796158682,26.0,176.06,176.04,0.03]
[1752796158859,35.27870047,176.06,176.04,0.03]
[1752796160176,26.0,176.06,176.04,0.03]
[1752796160570,26.0,176.07,176.05,0.68]
[1752796160893,35.27870047,176.07,176.04,0.03]
[1752796161177,9.27870047,176.06,176.04,0.03]
[1752796161556,35.27870047,176.07,176.04,0.03]
[1752796162383,40.95845129,176.07,176.04,0.03]
[1752796162878,9.27870047,176.06,176.04,0.03]
[1752796163070,9.27870047,176.05,176.04,0.03]
[1752796163271,9.69870047,176.05,176.04,0.03]
[1752796163859,65.67870047,176.05,176.04,0.03]